Cogmind - Beta 14 @@@ ROGUE MODE // 2025.04.27 @ 14:25:03 Player: blank Result: Destroyed by DAS Turret with DAS Cannon Performance ------------- Evolutions (0) 0 Regions Visited (3) 600 Robots Destroyed (18) 90 Value Destroyed (522) 522 Prototype IDs (0) 0 Alien Tech Used (0) 0 Bonus (0) 0 TOTAL SCORE: 1212 Bonus ------- None Cogmind --------- Core Integrity 0/250 Matter 266/300 Energy 24/100 System Corruption 5% Temperature Cool (60) Movement Treading (240) Ox1 Location -10/Exiles Parts ------- > --- POWER (1) -------- (None) > --- PROPULSION (2) --- Light Treads > --- UTILITY (2) ------ Large Storage Unit Terrain Scanner > --- WEAPON (2) ------- Ion Cannon > --- INVENTORY (15) --- Deuterium Engine Compact Wheel Compact Wheel Large Storage Unit Large Storage Unit Large Storage Unit Advanced Visual Processing Unit Sensor Array Improved Signal Interpreter Terrain Scan Processor Targeting Computer Advanced Targeting Computer Recoil Stabilizer Peak State ------------ > --- POWER ------------ Light Ion Engine > --- PROPULSION ------- Light Treads Light Treads > --- UTILITY ---------- Large Storage Unit Terrain Scanner > --- WEAPON ----------- Rocket Launcher Plasma Flamer > --- INVENTORY -------- Deuterium Engine Compact Wheel Compact Wheel Large Storage Unit Large Storage Unit Large Storage Unit Advanced Visual Processing Unit Sensor Array Improved Signal Interpreter Terrain Scan Processor Targeting Computer Advanced Targeting Computer Recoil Stabilizer Beamcaster Ion Cannon [Rating: 15] Favorites ----------- Power Light Ion Engine Engine Light Ion Engine Power Core Light Nuclear Core Propulsion Light Treads Treads Light Treads Utility Terrain Scanner Device Terrain Scanner Storage Large Storage Unit Weapon Assault Rifle Energy Gun Medium Laser Energy Cannon Ion Cannon Ballistic Gun Assault Rifle Launcher Rocket Launcher Special Weapon Plasma Flamer Build | -11 -10 -10 -10 ------- Run | Yrd Mat Min Exi Slots Evolved . | . . . . Power . | . . . . Propulsion . | . . . . Utility . | . . . . Weapon . | . . . . Parts Attached 25 | 7 10 6 2 Power 7 | 2 2 3 . Engine 5 | 2 1 2 . Core 2 | . 1 1 . Reactor . | . . . . Propulsion 5 | 2 2 1 . Treads 5 | 2 2 1 . Leg . | . . . . Wheel . | . . . . Hover . | . . . . Flight . | . . . . Utility 4 | 1 3 . . Device 1 | . 1 . . Storage 3 | 1 2 . . Processor . | . . . . Hackware . | . . . . Protection . | . . . . Artifact . | . . . . Weapon 9 | 2 3 2 2 Energy Gun 2 | . 1 . 1 Energy Cannon 1 | . . . 1 Ballistic Gun 3 | 2 1 . . Ballistic Cannon . | . . . . Launcher 2 | . 1 1 . Special Weapon 1 | . . 1 . Impact Weapon . | . . . . Slashing Weapon . | . . . . Piercing Weapon . | . . . . Special Melee Weapon . | . . . . Unidentified Prototypes . | . . . . Parts Lost 13 | . 5 3 5 Power 4 | . 2 1 1 Propulsion 3 | . 1 1 1 Utility . | . . . . Weapon 6 | . 2 1 3 Highest Loss Streak 5 | . 3 2 5 To Critical Strikes . | . . . . Average Slot Usage (%) 91 | . 87 94 98 Engine 7 | . 4 9 13 Core 5 | . 7 4 . Treads 23 | . 18 26 28 Device 13 | . 13 14 14 Storage 14 | . 14 14 14 Energy Gun 6 | . 4 10 . Ballistic Gun 10 | . 18 5 . Launcher 5 | . 4 4 13 Special Weapon 3 | . . 3 13 Peak Build Rating 15 | 6 9 15 15 Average Rating 9 | 5 7 9 14 On Entrance 7 | . 6 8 15 Naked Turns . | . . . . Heaviest Build 31 | 14 31 31 31 Greatest Support 40 | 40 40 40 40 Greatest Overweight (x) 1 | . 1 1 . Average Overweight (x) . | . . . . Largest Inventory Capacity 15 | 8 15 15 15 Average Capacity 13 | 7 12 15 15 Most Carried 15 | 4 13 15 15 Average Carried 11 | 2 9 13 14 Final Capacity 15 | 8 15 15 15 Final Carried 15 | 4 11 15 13 Class Distribution -------------------- 100% | Mutant Dominant Class ---------------- Mutant | -10/Materials Mutant | -10/Mines Mutant | -10/Exiles Resources | -11 -10 -10 -10 ----------- Run | Yrd Mat Min Exi Matter Collected 791 | 209 378 204 . Remotely . | . . . . Salvage Created 550 | . 252 257 41 Parts 33 | . 15 16 2 Haulers Intercepted . | . . . . Recyclers Shooed . | . . . . Parts Field Recycled . | . . . . Retrieved Matter . | . . . . Parts Self-Destructed . | . . . . Prevented . | . . . . Kills | -11 -10 -10 -10 ------- Run | Yrd Mat Min Exi Combat Hostiles Destroyed 15 | . 7 8 . Guns 12 | . 5 7 . AOE 3 | . 2 1 . Classes Destroyed 5 | . 3 2 . Worker 1 | . 1 . . Builder 1 | . . 1 . Mechanic 1 | . 1 . . Swarmer 3 | . . 3 . Grunt 12 | . 7 5 . Best Kill Streak 4 | . 4 4 . Combat Bots Only 4 | . 4 3 . Max Kills in Single Turn 2 | . 2 1 . Gunslinging . | . . . . Exploded 1 | . 1 1 . Melee . | . . . . Uniques/NPCs Destroyed . | . . . . Combat | -11 -10 -10 -10 -------- Run | Yrd Mat Min Exi Hostile Shots Fired 150 | . 72 51 27 Missed 43 | . 28 12 3 Damage Taken 1707 | . 636 478 593 Core 305 | . 42 117 146 Absorbed by Shields . | . . . . Regen/Repaired (Parts) 108 | . 108 . . Core Remaining (%) 100 | 100 . . . Volleys Fired 69 | . 28 37 4 Largest 2 | . 2 2 2 Hottest 135 | . 70 100 135 Shots Fired 117 | . 52 59 6 Gun 97 | . 40 56 1 Cannon 2 | . . . 2 Launcher 17 | . 12 2 3 Special 1 | . . 1 . Kinetic 60 | . 39 21 . Thermal 40 | . 1 36 3 Explosive 17 | . 12 2 3 Electromagnetic . | . . . . Robot Hit Streak 15 | . 15 4 4 Robot Miss Streak 3 | . 3 2 2 Penetration Max . | . . . . Secondary Targets 4 | . 3 1 . Max Gunslinging Chain 1 | . 1 1 . Shots Hit Robots 66 | . 29 33 4 Core Hits 40 | . 21 15 4 Critical Kills . | . . . . Critical Parts Destroyed . | . . . . Critical Strikes 2 | . . 2 . Burn 2 | . . 2 . Melee Attacks . | . . . . Impact . | . . . . Slashing . | . . . . Piercing . | . . . . Sneak Attacks . | . . . . Combat Hostiles . | . . . . Follow-up Attacks . | . . . . Damage Inflicted 1477 | . 761 452 264 Guns 807 | . 371 415 21 Cannons 44 | . . . 44 Explosions 626 | . 390 37 199 Melee . | . . . . Ramming . | . . . . Kinetic 549 | . 358 191 . Thermal 302 | . 13 224 65 Explosive 626 | . 390 37 199 Electromagnetic . | . . . . Impact . | . . . . Slashing . | . . . . Piercing . | . . . . Highest Corruption 5 | . 2 2 5 Average Corruption 2 | . 2 2 2 Corruption Purged . | . . . . Corruption Blocked . | . . . . Effects 33 | . 7 22 4 Message Errors 9 | . 2 7 . Matter Fused 11 | . 4 6 1 Energy Discharges 3 | . 1 2 . Parts Rejected 1 | . . 1 . Parts Fused 1 | . . 1 . Data Loss (minor) 4 | . . 3 1 Data Loss (major) 1 | . . . 1 Misfires 2 | . . 1 1 Alerts 1 | . . 1 . Overload Shots . | . . . . Overflow Damage . | . . . . Projectiles . | . . . . Explosions . | . . . . Melee . | . . . . Knockbacks . | . . . . Impact . | . . . . Kinetic . | . . . . Secondary . | . . . . Self-Inflicted Damage 54 | . 53 1 . Shots 3 | . 2 1 . Rammed . | . . . . Targets Rammed . | . . . . Kicked . | . . . . Crushed . | . . . . Highest Temperature 287 | . 36 287 60 Average Temperature 82 | . 17 106 40 Received Heat Transfer 612 | . 354 258 . Effects 2 | . . 2 . Interference 2 | . . 2 . Siege Activations . | . . . . Robots Corrupted . | . . . . Combat Hostiles . | . . . . Parts Fried . | . . . . Impact Corruptions . | . . . . Robots Melted . | . . . . Combat Hostiles . | . . . . Parts Melted . | . . . . Heat Transferred 962 | . 37 814 111 Parts Sabotaged . | . . . . Parts Stolen . | . . . . Parts Stripped . | . . . . Power Chain Reactions . | . . . . Alert | -11 -10 -10 -10 ------- Run | Yrd Mat Min Exi Peak Influence 123 | . 80 123 . Initial . | . . . . Average 35 | . 37 36 . Maximum Alert Level . | . . . . Low Security (%) 100 | 100 100 100 . Level 1 . | . . . . Level 2 . | . . . . Level 3 . | . . . . Level 4 . | . . . . Level 5 . | . . . . High Security . | . . . . Max Security . | . . . . Squads Dispatched 1 | . . 1 . Investigation 1 | . . 1 . Extermination . | . . . . Reinforcement . | . . . . Assault . | . . . . Garrison . | . . . . Intercept . | . . . . Searches Triggered . | . . . . Construction Impeded . | . . . . Haulers Reinforced . | . . . . Active Scanning Responses . | . . . . Cargo Convoy Interrupts . | . . . . Stealth | -11 -10 -10 -10 --------- Run | Yrd Mat Min Exi Distress Signals 1 | . 1 . . Communications Jammed . | . . . . Distress Signals . | . . . . Times Spotted 23 | . 10 7 6 Peak Tracking Total 12 | . 4 3 12 Tactical Retreats . | . . . . Traps | -11 -10 -10 -10 ------- Run | Yrd Mat Min Exi Traps Triggered 1 | . 1 . . Indirectly . | . . . . Trap Hack Attempts . | . . . . Triggered . | . . . . Disarmed . | . . . . Reprogrammed . | . . . . Reused . | . . . . Traps Extracted . | . . . . Installed . | . . . . Triggered . | . . . . Machines | -11 -10 -10 -10 ---------- Run | Yrd Mat Min Exi Machines Disabled 2 | . . . 2 Max in Single Turn 1 | . . . 1 Machines Repaired . | . . . . Machines Dismantled . | . . . . Machines Sabotaged . | . . . . Overloaded Fab Kills . | . . . . Hacking | -11 -10 -10 -10 --------- Run | Yrd Mat Min Exi Machines Accessed 5 | . 3 2 . Terminals 3 | . 2 1 . Fabricators . | . . . . Repair Stations 1 | . 1 . . Recycling Units . | . . . . Scanalyzers . | . . . . Garrison Access . | . . . . Total Hacks 9 | . 7 2 . Successful 4 | . 2 2 . Failed 5 | . 5 . . Catastrophic . | . . . . Database Lockouts . | . . . . Manual 1 | . 1 . . Terminals 6 | . 5 1 . Fabricators . | . . . . Repair Stations 2 | . 2 . . Recycling Units . | . . . . Scanalyzers . | . . . . Garrison Access . | . . . . Terminal Hacks 2 | . . 2 . Open Door 1 | . . 1 . Level Access Points 1 | . . 1 . Fabricator Hacks . | . . . . Repair Station Hacks 2 | . 2 . . Scan Component 1 | . 1 . . Repair 1 | . 1 . . Recycling Unit Hacks . | . . . . Scanalyzer . | . . . . Garrison Access Hacks . | . . . . Unauthorized Hacks . | . . . . Terminals . | . . . . Fabricators . | . . . . Repair Stations . | . . . . Recycling Units . | . . . . Scanalyzers . | . . . . Garrison Access . | . . . . Data Cores Recovered . | . . . . Used . | . . . . Hacking Detections 2 | . 2 . . Full Trace Events . | . . . . Feedback Events . | . . . . Feedback Blocked . | . . . . Robot Schematics Acquired . | . . . . Robots Built . | . . . . Authchips . | . . . . Time . | . . . . Total Robot Build Rating . | . . . . Part Schematics Acquired . | . . . . Parts Built . | . . . . Authchips . | . . . . Time . | . . . . Total Part Build Rating . | . . . . Parts Repaired 1 | . 1 . . Time 26 | . 26 . . Parts Recycled . | . . . . Recycled Matter . | . . . . Retrieved Matter . | . . . . Retrieved Components . | . . . . Parts Scanalyzed . | . . . . Part Schematics Acquired . | . . . . Parts Damaged . | . . . . Bothacking | -11 -10 -10 -10 ------------ Run | Yrd Mat Min Exi Used RIF Installer . | . . . . Robots Hacked . | . . . . Non-combat . | . . . . Combat . | . . . . Robot Hacks Applied . | . . . . Relay Couplers Released . | . . . . Fabnet Peak Effective % . | . . . . Robots Rewired . | . . . . Allies Hacked . | . . . . Hacks Repelled . | . . . . Allies | -11 -10 -10 -10 -------- Run | Yrd Mat Min Exi Total Allies . | . . . . Largest Group . | . . . . Highest-Rated Group . | . . . . Highest-Rated Ally . | . . . . Total Orders . | . . . . Ally Attacks . | . . . . Total Damage . | . . . . Kills . | . . . . Allies Corrupted . | . . . . Allies Melted . | . . . . Intel | -11 -10 -10 -10 ------- Run | Yrd Mat Min Exi Robot Analysis Total . | . . . . Derelict Logs Recovered 1 | . . 1 . Drone Launches . | . . . . Drone Recoveries . | . . . . Exploration | -11 -10 -10 -10 ------------- Run | Yrd Mat Min Exi Turns Passed 3134 | 127 1325 1391 291 Spaces Moved 1656 | 73 631 776 176 Core 3 | 3 . . . Treads 1653 | 70 631 776 176 Legs . | . . . . Wheels . | . . . . Hover . | . . . . Flight . | . . . . Fastest Speed 50 | 50 160 160 160 Average Speed 172 | 155 188 163 160 Slowest Speed 240 | 160 240 240 160 Overloaded Moves . | . . . . Propulsion Burnouts . | . . . . Robots Hopped . | . . . . Cave-ins Triggered . | . . . . Exploration Rate (%) 55 | 5 80 98 40 Regions Visited 3 Branch Regions 2 Pre-discovered Areas 1 | . . 1 . Known Exits Taken . | . . . . Unknown Exits Taken 3 | 1 1 1 . Scrap Searched 1 | . . 1 . Spaces Dug 15 | . . 15 . Terrain Destroyed 105 | . 67 28 10 Melee . | . . . . Projectile . | . . . . AOE 105 | . 67 28 10 Terrain Rammed . | . . . . Walls Destroyed . | . . . . Machines Disabled . | . . . . Actions | -11 -10 -10 -10 --------- Run | Yrd Mat Min Exi Total 1824 | 83 713 846 182 Wait 42 | . 33 9 . Move 1653 | 72 630 775 176 Hop . | . . . . Pick Up 27 | 4 10 13 . Fast Attach 11 | 6 4 1 . Attach 8 | . 3 3 2 Detach . | . . . . Swap 6 | 1 3 2 . Drop 8 | . 2 6 . Fire 69 | . 28 37 4 Melee . | . . . . Ram . | . . . . Kick . | . . . . Crush . | . . . . Escape Stasis . | . . . . Rewire . | . . . . Trap . | . . . . Miscellaneous . | . . . . Route ------- -11/Scrapyard -10/Materials (discovered 4 exits: *Mat x2 / *Min x2) -10/Mines (discovered 3 exits: *Mat x2 / [*Exi]) -10/Exiles (discovered 1 exit: [*Min]) History --------- Turn | Location | Event 75 | -11/Scrapyard | Discovered new exit (range 15) 128 | -11/Scrapyard | Entered Materials 314 | -10/Materials | Build established: Mutant 397 | -10/Materials | Discovered new exit (range 15) 601 | -10/Materials | Discovered new exit (range 14) 846 | -10/Materials | Discovered new exit (range 14) 928 | -10/Materials | Derelicts attacked the area 1064 | -10/Materials | Lost 3 parts (1p2w) 1092 | -10/Materials | Discovered new exit (range 5) 1348 | -10/Materials | Repaired Lgt. Treads 1453 | -10/Materials | Entered Mines 1529 | -10/Mines | Discovered new exit (range 5) 1616 | -10/Mines | Received a Rocket Launcher from a helpful Derelict 1693 | -10/Mines | Learned location of Storage (-9) 1960 | -10/Mines | Core integrity fell below 50% 2034 | -10/Mines | Discovered new exit (range 8) 2170 | -10/Mines | Identified exit to Materials 2240 | -10/Mines | Deemed a non-threat by the Exiles lab entrance 2242 | -10/Mines | Discovered new exit (range 5) 2452 | -10/Mines | A weapon hastily lodged in a ceiling crevice suddenly fell to the ground 2580 | -10/Mines | Met a Derelict shopkeep closing up shop 2844 | -10/Mines | Entered Exiles 2892 | -10/Exiles | Discovered new exit (range 15) 2971 | -10/Exiles | Met 8R-AWN 3014 | -10/Exiles | Met EX-HEX 3118 | -10/Exiles | Met EX-DEC 3124 | -10/Exiles | Attacked by the Exiles 3130 | -10/Exiles | Core integrity fell below 20% 3135 | -10/Exiles | Destroyed by DAS Turret with DAS Cannon Last Messages --------------- chain! EX-DEC: "Oops, I hope HEX didn't hear that..." System corrupted: FCS attempts to trigger Rocket Launcher. System corrupted: Rocket Launcher misfires. [Achievement: Maybe Next Time I'll Detach My Launcher] EXILES: Hostile robot within lab perimeter. Defensive protocols time, folks! A-02 Transporter destroyed. Machine disabled. EX-DEC: "Let's see what this bad boy can do..." EX-DEC deploys DAS Turret. Machine disabled. Plasma Flamer destroyed. Lgt. Ion Engine destroyed. Rocket Launcher destroyed. Machine disabled. Lgt. Treads destroyed. Beamcaster destroyed. Map ----- +----------------------------------------------------+ | ?????????????????????????????????????????????????? | | ?????????????????????????????????????????????????? | | ?????????????????????????????????????????????????? | | ?????????????????????????????????????????????????? | | ?????????????????????????????????????????????????? | | ????????????????????????????????????????? #??????? | | ??????????????????????????????????????? #????## | | ??????????????????????????????????????? #####" | | ?????????????????????????????????????? " | | ??????????????????????? ?????????? | | ????????????????????? ???????? | | ?????????????????? ???????? | | ???????????????? ??????? | | ???????????????? ??????? | | ?????????????? ?????????" | | ??????????????# ???????????" | | ??????????????" z"???????????#""" | | ??????????????" """????????????#""" | | ??????????????"" """#??????#?????#"""" | | ?????????????""" ""??#????##???##"" | | ?????????????"" ###### #####"""" | | ?????????????""" ##%aa ##""" | | ?????????????"" t * """ | | ?????????????#"" | | ???????????????""" %% a a a a | | ??????????????# @ a | | ??????????????#" % " "" | | ??????????????#"""" ""## ##""" " " | | ???????????????"" ""#### ######""" | | ??????????????#" c """"##??# #????###"" | | ??????????????#""" """#??## ####???### | | ??????????????## ""##??#! "!#?????? | | ???????????????#" """##???#" !#?????? | | ???????????????##""" ##??#?#" "#?????? | | ????????????????##"""" ##?????#!!""!"#?????? | | ??????????????????## #????#?########?????? | | ???????????????????##### ##???????????????????? | | ???????????????????????## #????????????????#???? | | ????????????????????????# #????????????????????? | | ????????????????????????? #????????????????????? | | ????????????????????????? ?????????????????????? | | ?????????????????????????????????????????????????? | | ?????????????????????????????????????????????????? | | ?????????????????????????????????????????????????? | | ?????????????????????????????????????????????????? | | ?????????????????????????????????????????????????? | | ?????????????????????????????????????????????????? | | ?????????????????????????????????????????????????? | | ?????????????????????????????????????????????????? | | ?????????????????????????????????????????????????? | +----------------------------------------------------+ Best States ------------- Heat Dissipation 25 Energy Generation 14 Energy Capacity 250 Matter Stores 300 Matter Capacity 300 Sight Range 16 Terrain Scan Range 14 Terrain Scan Density 10 Evasion (%) 40 Recoil Reduction 2 Item Schematics ----------------- None Robot Schematics ------------------ None Fabricated ------------ Nothing Alien Tech Used ----------------- None Achievements -------------- Maybe Next Time I'll Detach My Launcher Challenges ------------ None Game ------ Seed SuspensionSigixRipteeth Manual? 0 Play Time 00:24:57 Cumulative 8.6 hours Start 2025.04.27 @ 13:59:18 End 2025.04.27 @ 14:25:03 Sessions 1 Manual Loads 0 Difficulty Rogue Special Mode None Game No. 17 Rogue 17 Adventurer 0 Explorer 0 Win Type - Total 0 Types 0/0/0/0/0/0/0/0/0 Lore% 3 Gallery% 10 Achievement% 12 Wizard Run 0 Options --------- Layout 2 ASCII 0 Keyboard 1 Movement Vi Keybinds 0 Fullscreen 2 Font 24/Smallcaps Map View 50x44 Zoom Use 0% Tactical HUD 0 Map Filters NONE Filters NONE Steam 1 RUN: cb73de2a-2d8c-40ac-8c61-76dd622ad856